bitfinex/quotes_SOLUSD_20260105
["timestamp","ask_amount","ask_price","bid_price","bid_amount"]
[1767631521468,2.42616869,135.11,135.07,0.75436]
[1767631521947,23.3072607,135.12,135.07,0.75436]
[1767631522946,20.88109201,135.12,135.07,0.75436]
[1767631523147,23.3072607,135.12,135.07,0.75436]
[1767631523651,20.88109201,135.12,135.07,0.75436]
[1767631523858,23.3072607,135.12,135.08,0.65436]
[1767631524769,23.6547507,135.12,135.08,0.65436]
[1767631525549,103.2,135.14,135.09,0.65436]
[1767631525748,18.84878078,135.15,135.09,0.65436]
[1767631525749,23.3055967,135.15,135.09,0.65436]
[1767631526078,2.42616869,135.13,135.09,0.65436]
[1767631526367,2.42616869,135.12,135.09,0.65436]
[1767631526572,39.37739323,135.15,135.09,0.65436]
[1767631526573,39.72739323,135.15,135.09,0.65436]
[1767631526777,2.42616869,135.14,135.09,0.65436]
[1767631527972,2.42616869,135.14,135.09,8.05636293]
[1767631528153,9.82602141,135.14,135.1,0.65436]
[1767631528348,2.42616869,135.14,135.1,0.65436]
[1767631528863,9.82591227,135.14,135.1,0.65436]
[1767631532150,21.22939485,135.15,135.11,0.68464344]
[1767631532469,2.42616869,135.13,135.09,0.68464344]
[1767631533273,2.42616869,135.1,135.07,0.1]
[1767631533464,2.42616869,135.08,135.03,0.68464344]
[1767631533679,20.88352714,135.08,135.03,0.68464344]
[1767631533847,2.42616869,135.06,135.03,0.68464344]
[1767631534345,39.54107822,135.08,135.03,0.68464344]
[1767631534549,2.42616869,135.07,135.03,0.68464344]
[1767631535749,9.82992218,135.07,135.03,0.68464344]
[1767631537155,9.83033775,135.06,135.03,0.68464344]
[1767631538074,9.82996464,135.07,135.03,0.68464344]
[1767631538271,7.40379595,135.07,135.03,0.68464344]
[1767631538453,9.82996464,135.07,135.03,0.68464344]
[1767631538801,7.40379595,135.07,135.03,0.68464344]
[1767631539271,20.88323716,135.08,135.04,0.68464344]
[1767631539474,23.30940585,135.08,135.04,0.68464344]
[1767631540048,15.90616869,135.08,135.04,0.68464344]
[1767631540261,13.48,135.08,135.04,0.68464344]
[1767631540555,15.90616869,135.08,135.04,0.68464344]
[1767631541255,7.4025822,135.09,135.05,0.68464344]
[1767631541455,2.42616869,135.08,135.05,0.68464344]
[1767631541656,2.42616869,135.07,135.05,0.68464344]
[1767631541875,2.42616869,135.07,135.02,7.40610545]
[1767631542081,2.42616869,135.07,135.03,0.68464344]
[1767631542462,2.42616869,135.06,135.03,0.68464344]
[1767631542661,3.79961197,135.06,135.03,0.68464344]
[1767631542877,3.73961198,135.06,135.03,0.68464344]
[1767631544577,3.67961199,135.06,135.03,0.68464344]
[1767631544959,3.79961197,135.06,135.03,0.68464344]
[1767631545398,11.20377846,135.06,135.03,0.68464344]
[1767631546056,3.89911687,135.05,134.99,0.68464344]
[1767631546362,3.79961197,135.03,134.99,0.68464344]
[1767631547286,0.0995049,135.05,134.99,0.68464344]
[1767631547580,3.79961197,135.03,134.99,0.68464344]
[1767631548577,11.20509159,135.04,134.99,0.68464344]
[1767631548979,3.79961197,135.03,134.99,0.68464344]
[1767631549476,3.79961197,135.03,135.0,0.68464344]
[1767631550079,3.73961198,135.03,135.01,0.68464344]
[1767631550272,11.20509159,135.04,135.01,0.68464344]
[1767631551083,0.0995049,135.05,135.01,0.68464344]
[1767631551285,3.79961197,135.04,135.01,0.68464344]
[1767631551874,0.0995049,135.05,135.01,0.68464344]
[1767631552085,3.79961197,135.04,135.01,0.68464344]
[1767631553185,3.79961197,135.03,135.01,0.68464344]
[1767631553691,3.79961197,135.03,134.99,7.40783471]
[1767631553692,3.79961197,135.02,134.99,0.68464344]
[1767631554193,0.15,135.03,134.98,6.76037269]
[1767631554366,3.79961197,134.99,134.97,0.68464344]
[1767631554569,3.79961197,135.0,134.97,0.68464344]
[1767631555084,13.599,135.01,134.97,0.68464344]
[1767631555285,17.39861197,135.01,134.97,0.68464344]
[1767631555493,17.29961197,135.01,134.97,0.68464344]
[1767631556071,3.79961197,135.0,134.97,0.68464344]
[1767631556386,21.00655957,135.01,134.97,0.68464344]
[1767631556589,3.79961197,134.99,134.97,0.68464344]
[1767631556790,3.79961197,135.01,134.97,0.68464344]
[1767631556982,24.70611475,135.02,134.97,0.68464344]
[1767631557287,20.90650278,135.02,134.97,0.68464344]
[1767631557492,17.39861197,135.02,134.98,8.09314569]
[1767631557667,24.80503059,135.02,134.98,0.68464344]
[1767631557862,24.70603059,135.02,134.98,0.68464344]
[1767631558580,3.79961197,135.01,134.98,0.68464344]
[1767631559581,3.79961197,135.0,134.98,0.68464344]
[1767631560182,13.5,135.02,134.98,0.68464344]
[1767631560183,20.90658226,135.02,134.98,0.68464344]
[1767631560376,24.70619423,135.02,134.98,0.68464344]
[1767631560687,17.29961197,135.02,134.99,0.68464344]
[1767631560873,13.5,135.02,134.99,0.68464344]
[1767631561278,24.70506544,135.04,134.99,0.68464344]
[1767631561788,24.70506544,135.04,135.0,0.66135373]
[1767631561789,24.70492366,135.04,135.0,0.66135373]
[1767631561974,3.79961197,135.03,135.0,0.66135373]
[1767631563569,24.70492366,135.04,135.0,0.66135373]
[1767631564687,11.20345375,135.07,135.01,0.72379455]
[1767631564886,7.40384178,135.07,135.01,0.72379455]
[1767631565082,3.79961197,135.08,135.01,0.72379455]
[1767631565393,0.15,135.09,135.01,0.72379455]
[1767631565394,17.29961197,135.09,135.01,0.72379455]
[1767631565564,20.90258347,135.09,135.01,0.72379455]
[1767631565763,20.90258347,135.09,135.03,0.72379455]
[1767631566169,3.79961197,135.08,135.03,0.72379455]
[1767631566589,0.0995049,135.09,135.03,0.72379455]
[1767631566797,24.70158303,135.1,135.03,0.72379455]
[1767631567892,20.90197106,135.1,135.05,0.72379455]
[1767631569068,13.5,135.1,135.06,0.72379455]
[1767631569275,11.20154393,135.1,135.06,0.72379455]
[1767631569897,7.40159118,135.11,135.06,0.72379455]
[1767631570075,11.20120315,135.11,135.06,0.72379455]
[1767631570971,11.20120315,135.11,135.05,7.4045555]
[1767631570972,7.5510674,135.12,135.08,0.72379455]
[1767631571171,7.4010674,135.12,135.08,0.72379455]
[1767631571398,11.20067937,135.12,135.08,0.72379455]
[1767631571991,7.39863865,135.16,135.08,0.72379455]
[1767631572176,3.79961197,135.15,135.08,0.72379455]
[1767631573097,3.79961197,135.11,135.08,0.72379455]
[1767631573700,3.79961197,135.1,135.08,0.72379455]
[1767631574384,0.10048477,135.12,135.08,0.72379455]
[1767631574385,3.79961197,135.11,135.08,0.72379455]
[1767631574689,3.90009674,135.12,135.08,0.72379455]
[1767631575106,11.34900869,135.11,135.07,0.72379455]
[1767631575593,3.79961197,135.1,135.05,14.22379455]
[1767631575792,3.79961197,135.08,135.04,0.72379455]
[1767631576002,3.79961197,135.07,135.04,0.72379455]
[1767631576902,3.79961197,135.08,135.04,0.72379455]
[1767631577207,11.20291863,135.08,135.04,0.72379455]
[1767631578282,3.79961197,135.07,135.04,0.72379455]
[1767631578687,7.40330666,135.08,135.04,0.72379455]
[1767631578887,11.20291863,135.08,135.04,0.72379455]
[1767631579090,3.79961197,135.07,135.04,0.72379455]
[1767631581715,11.20354096,135.07,135.04,0.72379455]
[1767631582907,7.40392899,135.07,135.04,0.72379455]
[1767631583099,11.20354096,135.07,135.04,0.72379455]
[1767631583302,3.94860211,135.06,135.02,0.72379455]
[1767631584511,3.79961197,135.04,135.01,0.72379455]
[1767631585208,3.79961197,135.03,134.99,0.72379455]
[1767631585418,0.10048477,135.03,134.99,0.72379455]
[1767631585612,3.79961197,135.03,134.99,0.72379455]
[1767631585985,11.20532033,135.04,134.99,0.72379455]
[1767631586616,3.79961197,135.03,134.99,0.72379455]
[1767631586915,3.79961197,135.02,134.99,0.72379455]
[1767631588212,7.40629331,135.03,134.99,0.72379455]
[1767631588510,0.15,135.05,135.0,0.72379455]
[1767631588816,3.79961197,135.04,135.0,0.72379455]
[1767631589608,11.20451493,135.05,135.0,8.13114548]
[1767631589796,0.15,135.1,135.02,0.72379455]
[1767631589995,3.94961197,135.1,135.02,0.72379455]
[1767631590895,7.40247242,135.09,135.04,0.67113961]
[1767631591517,7.50147242,135.09,135.04,0.67113961]
[1767631591715,11.30108439,135.09,135.04,0.67113961]
[1767631592715,7.40247242,135.09,135.04,0.67113961]
[1767631593025,11.20208439,135.09,135.04,0.67113961]
[1767631593500,3.89911687,135.07,135.02,8.07729545]
[1767631593837,3.94961197,135.08,135.04,0.67113961]
[1767631594114,11.35208439,135.09,135.05,0.67113961]
[1767631595727,13.5,135.11,135.06,0.67113961]
[1767631596024,20.90164667,135.11,135.06,0.67113961]
[1767631597324,3.79961197,135.1,135.06,0.67113961]
[1767631597826,39.50408831,135.11,135.06,0.67113961]
[1767631598126,3.79961197,135.1,135.06,0.67113961]
[1767631600032,3.79961197,135.09,135.06,0.67113961]
[1767631600219,3.94860211,135.08,135.03,0.67113961]
[1767631600421,3.94860211,135.08,135.04,0.67113961]
[1767631600622,3.79961197,135.08,135.04,0.67113961]
[1767631600821,7.40237211,135.1,135.05,0.67113961]
[1767631601833,7.40237211,135.1,135.06,0.67113961]
[1767631602034,3.79961197,135.11,135.07,0.67113961]
[1767631602224,13.5,135.1,135.07,0.67113961]
[1767631603233,17.44910197,135.1,135.06,0.67113961]
[1767631603432,3.79961197,135.08,135.04,0.67113961]
[1767631604540,2.43106004,135.08,135.04,0.67113961]
[1767631606622,9.83419153,135.08,135.04,0.67113961]
[1767631606823,7.40273612,135.09,135.05,0.67113961]
[1767631607124,13.5,135.08,135.05,0.67113961]
[1767631609221,20.90310311,135.08,135.05,0.67113961]
[1767631610847,23.43366805,135.08,135.03,0.67113961]
[1767631612446,21.00260801,135.08,135.03,0.67113961]
[1767631612621,23.43366805,135.08,135.03,0.67113961]
[1767631616849,0.14899014,135.07,135.02,8.08987842]
[1767631617526,0.14899014,135.07,135.02,7.40606086]
[1767631617926,0.14899014,135.07,135.02,8.08987842]
[1767631619047,0.14899014,135.07,135.03,0.68381756]
[1767631619742,20.90310311,135.08,135.03,0.68381756]
[1767631619943,13.5,135.08,135.03,0.68381756]
[1767631620141,2.58106004,135.12,135.03,0.68381756]
[1767631620351,13.5,135.11,135.03,0.68381756]
[1767631620955,20.90145612,135.11,135.05,0.70587516]
[1767631621154,0.15,135.13,135.05,0.70587516]
[1767631621382,2.58106004,135.16,135.06,0.70587516]
[1767631621681,13.5,135.15,135.07,0.70587516]
[1767631622638,20.89922314,135.15,135.09,0.70587516]
[1767631622961,7.39922314,135.15,135.09,0.70587516]
[1767631623165,9.92891656,135.16,135.09,0.70587516]
[1767631623340,13.5,135.15,135.09,0.70587516]
[1767631624460,2.5310598,135.11,135.06,0.70587516]
[1767631624635,16.0310598,135.11,135.06,0.70587516]
[1767631624832,2.43106004,135.1,135.06,0.70587516]
[1767631625056,2.53154481,135.09,135.04,0.70587516]
[1767631625240,15.93106004,135.08,135.04,0.70587516]
[1767631625646,13.5,135.08,135.04,0.70587516]
[1767631626361,2.43106004,135.09,135.04,0.70587516]
[1767631626362,9.83383675,135.09,135.04,0.70587516]
[1767631626540,23.33383675,135.09,135.04,0.70587516]
[1767631628762,2.43106004,135.08,135.04,0.70587516]
[1767631629149,9.83412737,135.08,135.04,0.70587516]
[1767631629761,7.40306733,135.08,135.04,0.70587516]
[1767631629958,7.55008503,135.13,135.05,0.70587516]
[1767631630159,23.48114507,135.13,135.05,0.70587516]
[1767631630564,21.05008503,135.13,135.05,0.70587516]
[1767631630740,23.48114507,135.13,135.05,0.70587516]
[1767631631048,0.14899014,135.11,135.05,0.70587516]
[1767631631249,9.83299813,135.1,135.06,0.70587516]
[1767631631563,13.5,135.1,135.06,0.70587516]
[1767631632162,9.83198548,135.12,135.06,0.70587516]
[1767631633970,9.83198548,135.12,135.07,0.70587516]
[1767631635064,2.53056494,135.1,135.05,8.1102851]
[1767631635642,2.53056494,135.1,135.06,0.70587516]
[1767631635841,9.93408023,135.08,135.03,7.40544966]
[1767631636067,2.43106004,135.09,135.03,0.70587516]
[1767631636266,2.43106004,135.09,135.05,0.70587516]
[1767631636267,13.5,135.09,135.05,0.70587516]
[1767631637966,0.14899014,135.08,135.03,8.11141817]
[1767631638170,0.14899014,135.08,135.03,7.40554301]
[1767631638556,20.9026638,135.09,135.04,0.70587516]
[1767631638755,23.43272384,135.09,135.04,0.70587516]
[1767631639442,2.43106004,135.08,135.04,0.70587516]
[1767631639770,2.58055004,135.08,135.03,0.70587516]
[1767631641561,7.4031833,135.08,135.04,0.70587516]
[1767631641962,121.85393859,135.11,135.04,0.70587516]
[1767631642180,15.93106004,135.1,135.04,0.70587516]
[1767631642369,13.5,135.1,135.04,0.70587516]
[1767631642571,2.58055004,135.09,135.04,0.70587516]
[1767631643772,9.93358537,135.08,135.04,0.70587516]
[1767631644070,16.08005018,135.07,135.02,0.70587516]
[1767631644571,2.43106004,135.06,135.02,0.70587516]
[1767631645778,2.43106004,135.05,135.0,0.70587516]
[1767631645952,9.83600326,135.05,135.01,0.70587516]
[1767631646570,9.98549326,135.05,135.01,0.70587516]
[1767631646758,2.43106004,135.04,135.01,0.70587516]
[1767631646958,15.93106004,135.04,135.0,0.70587516]
[1767631647353,37.01637073,135.08,135.0,0.70587516]
[1767631647354,9.83534884,135.06,135.01,0.70587516]
[1767631647558,13.5,135.05,135.01,0.70587516]
[1767631647964,20.9042888,135.06,135.02,0.70587516]
[1767631649875,9.98460666,135.08,135.03,0.70587516]
[1767631650061,13.5,135.07,135.03,0.70587516]
[1767631650977,7.40270071,135.09,135.03,0.70587516]
[1767631651167,20.90270071,135.09,135.05,0.71261063]
[1767631651697,13.5,135.09,135.05,0.71261063]
[1767631651860,20.90259405,135.09,135.05,0.71261063]
[1767631653980,13.5,135.09,135.05,0.71261063]
[1767631656886,2.43106004,135.11,135.05,0.71261063]
[1767631657088,13.5,135.11,135.05,0.71261063]
[1767631657291,13.599,135.11,135.05,0.71261063]
[1767631657493,16.03006004,135.11,135.05,0.71261063]
[1767631657990,13.599,135.11,135.05,0.71261063]
[1767631658292,2.58055004,135.1,135.05,0.71261063]
[1767631658699,2.53056494,135.09,135.02,0.71261063]
[1767631658922,0.14899014,135.08,135.02,0.71261063]
[1767631659881,2.43106004,135.09,135.02,0.71261063]
[1767631660088,103.2,135.13,135.02,0.71261063]
[1767631660089,2.53056494,135.07,135.02,0.71261063]
[1767631661764,2.43106004,135.06,135.02,0.71261063]
[1767631661966,2.53056494,135.07,135.02,0.71261063]
[1767631662685,2.58005018,135.06,135.02,0.71261063]
[1767631662887,2.43106004,135.05,135.02,0.71261063]
[1767631664086,2.57956027,135.04,135.0,0.71261063]
[1767631664272,2.43106004,135.04,135.0,0.71261063]
[1767631664471,2.43106004,135.05,135.0,0.71261063]
[1767631664690,3.79986726,135.05,135.0,0.71261063]
[1767631667087,3.79986726,135.06,135.0,0.71261063]
[1767631667285,3.89886726,135.06,135.0,0.71261063]
[1767631667595,3.79986726,135.05,135.0,0.71261063]
[1767631668387,3.79986726,135.06,135.0,0.71261063]
[1767631668598,3.79986726,135.07,135.0,0.71261063]
[1767631668803,0.15,135.08,135.0,0.71261063]
[1767631669088,3.94986726,135.08,135.0,0.71261063]
[1767631669287,3.79986726,135.08,135.0,0.71261063]
[1767631669677,17.29986726,135.09,135.02,0.71261063]
[1767631669870,13.5,135.09,135.02,0.71261063]
[1767631670072,17.29986726,135.09,135.02,0.71261063]
[1767631670575,17.44935726,135.09,135.02,0.71261063]
[1767631670776,3.79986726,135.08,135.02,0.71261063]
[1767631671378,0.09999976,135.06,135.02,0.71261063]
[1767631671578,3.79986726,135.05,135.02,0.71261063]
[1767631671782,3.79986726,135.04,134.99,0.71261063]
[1767631672888,3.94836749,135.05,134.99,0.71261063]
[1767631673992,3.90035203,135.04,134.99,0.71261063]
[1767631674886,3.79986726,135.04,134.99,0.71261063]
[1767631675768,0.15,135.05,134.99,0.71261063]
[1767631675972,3.94986726,135.05,134.99,0.71261063]
[1767631676175,0.14899014,134.99,134.95,0.1]
[1767631676383,3.79986726,134.97,134.95,0.1]
[1767631676676,3.73986727,134.97,134.95,0.1]
[1767631677788,13.64899014,134.99,134.95,0.1]
[1767631677987,3.79986726,134.96,134.95,0.1]
[1767631678697,3.79986726,134.97,134.95,0.1]
[1767631679401,13.65,135.0,134.95,0.81261063]
[1767631679586,3.79986726,134.98,134.95,0.81261063]
[1767631679977,3.79986726,134.99,134.95,0.81261063]
[1767631681418,3.79986726,134.98,134.95,0.1]
[1767631681704,3.79986726,134.97,134.95,0.1]
[1767631682005,3.79986726,134.96,134.95,0.1]
[1767631682200,0.14899014,134.98,134.95,0.1]
[1767631682408,3.79986726,134.96,134.95,0.1]
[1767631682988,3.79986726,134.97,134.95,0.1]
[1767631683190,13.599,135.0,134.95,0.77918132]
[1767631683506,3.79986726,134.98,134.95,0.77918132]
[1767631684413,3.73986727,134.98,134.95,0.77918132]
[1767631684997,3.67986728,134.98,134.95,0.77918132]
[1767631685388,11.20798492,134.99,134.95,0.77918132]
[1767631685607,3.79986726,134.98,134.95,0.77918132]
[1767631685810,3.79986726,134.97,134.95,0.77918132]
[1767631685994,3.79986726,134.97,134.92,0.1]
[1767631685995,3.79986726,134.96,134.92,0.1]
[1767631686200,3.79986726,134.95,134.92,0.1]
[1767631686896,3.79986726,134.94,134.92,0.1]
[1767631687396,3.79986726,134.95,134.92,0.1]
[1767631688897,17.29986726,134.95,134.92,0.1]
[1767631689211,3.79986726,134.94,134.92,0.1]
[1767631689417,13.5,134.95,134.92,0.1]
[1767631691122,13.5,134.95,134.92,0.76542378]
[1767631691496,11.20910006,134.97,134.92,0.76542378]
[1767631691724,103.2,134.98,134.92,0.76542378]
[1767631691928,13.5,134.97,134.92,0.1]
[1767631692218,3.79986726,134.96,134.92,0.1]
[1767631692809,7.41070105,134.94,134.92,0.1]
[1767631693011,11.21056831,134.94,134.92,0.1]
[1767631693526,7.41070105,134.94,134.92,0.1]
[1767631693732,13.5,134.93,134.92,0.1]
[1767631694115,20.91125027,134.93,134.92,0.1]
[1767631695900,13.5,134.93,134.92,0.1]
[1767631696300,13.5,134.94,134.92,0.1]
[1767631696500,13.5,134.95,134.92,0.1]
[1767631697101,17.29986726,134.95,134.92,0.1]
[1767631698509,17.29986726,134.95,134.92,0.03661564]
[1767631699130,24.71007013,134.95,134.92,0.03661564]
[1767631699328,3.79986726,134.93,134.9,0.1]
[1767631699535,13.5,134.92,134.9,0.1]
[1767631699829,17.29986726,134.92,134.9,0.1]
[1767631700498,13.5,134.92,134.9,0.1]
[1767631701216,7.41085863,134.94,134.9,0.76542378]
[1767631701217,11.21072589,134.94,134.9,0.76542378]
[1767631701411,11.21007485,134.95,134.9,0.76542378]
[1767631701629,3.79986726,134.94,134.9,0.76542378]
[1767631701926,3.79986726,134.93,134.9,0.76542378]
[1767631702427,17.29986726,134.94,134.9,0.76542378]
[1767631703328,24.71070136,134.94,134.9,0.76542378]
[1767631703952,3.79986726,134.93,134.9,0.76542378]
[1767631708243,3.79986726,134.92,134.9,0.76542378]
[1767631708451,3.73986727,134.92,134.9,0.1]
[1767631709325,3.79986726,134.92,134.9,0.76542378]
[1767631709931,20.91095868,134.94,134.9,0.76542378]
[1767631710132,3.79986726,134.92,134.9,0.76542378]
[1767631710356,3.79986726,134.93,134.9,0.76542378]
[1767631710523,24.71082594,134.94,134.9,0.76542378]
[1767631710960,24.71082594,134.94,134.88,0.1]
[1767631710961,3.79986726,134.91,134.88,0.1]
[1767631711129,3.79986726,134.89,134.85,0.70746473]
[1767631711326,3.79986726,134.9,134.85,0.70746473]
[1767631711525,13.5,134.9,134.86,0.70746473]
[1767631711932,13.5,134.9,134.87,0.70746473]
[1767631712151,3.79986726,134.91,134.87,0.70746473]
[1767631712324,13.5,134.9,134.87,0.70746473]
[1767631714355,24.71291099,134.9,134.87,0.70746473]
[1767631714739,17.29986726,134.9,134.87,0.70746473]
[1767631715138,3.79986726,134.9,134.87,0.70746473]
[1767631715344,3.79986726,134.89,134.87,0.70746473]
[1767631715551,13.52,134.9,134.85,0.70746473]
[1767631715745,3.79986726,134.87,134.85,0.70746473]
[1767631716450,24.73460708,134.87,134.8,26.89525865]
[1767631716672,24.73460708,134.87,134.81,0.70746473]
[1767631716673,3.79986726,134.86,134.81,0.70746473]
[1767631716954,3.79986726,134.85,134.82,0.70746473]
[1767631717353,3.79986726,134.85,134.8,8.12569213]
[1767631717651,3.79986726,134.85,134.81,0.70746473]
[1767631719552,13.52,134.85,134.82,0.70746473]
[1767631721156,13.46000001,134.85,134.82,0.70746473]
[1767631721560,24.67564723,134.85,134.8,8.12563744]
[1767631721855,24.67564723,134.85,134.81,0.70746473]
[1767631722460,17.25986727,134.85,134.81,0.70746473]
[1767631722754,13.46000001,134.85,134.81,0.70746473]
[1767631723347,17.25986727,134.85,134.79,0.70746473]
[1767631723541,3.79986726,134.84,134.79,0.70746473]
[1767631723742,3.79986726,134.85,134.79,8.12595325]
[1767631723966,13.52,134.84,134.8,0.70746473]
[1767631724561,20.93638009,134.84,134.8,0.70746473]
[1767631726165,24.73624735,134.84,134.8,0.70746473]
[1767631726362,20.93638009,134.84,134.8,0.70746473]
[1767631727254,20.9362695,134.84,134.8,0.70746473]
[1767631728653,20.87626951,134.84,134.8,0.70746473]
[1767631729144,13.46000001,134.84,134.81,0.70746473]
[1767631729348,20.87628975,134.84,134.81,0.70746473]
[1767631730262,13.46000001,134.84,134.81,0.70746473]
[1767631731355,20.87625354,134.84,134.81,0.70746473]
[1767631731556,23.31587804,134.84,134.81,0.70746473]
[1767631731758,13.46000001,134.84,134.81,0.70746473]
[1767631732166,13.40000002,134.84,134.82,0.70746473]
[1767631732368,20.81623712,134.84,134.82,0.70746473]
[1767631732674,20.81623712,134.84,134.78,0.80746473]
[1767631732975,20.81623712,134.84,134.79,0.70746473]
[1767631733155,2.4396245,134.85,134.79,0.70746473]
[1767631733156,7.41588516,134.85,134.8,0.68411848]
[1767631733361,13.52,134.84,134.8,0.68411848]
[1767631735272,20.93620485,134.84,134.8,0.68411848]
[1767631736157,20.87620486,134.84,134.81,0.68411848]
[1767631737679,20.87620486,134.84,134.78,0.1]
[1767631737680,13.52,134.84,134.82,0.68411848]
[1767631738175,9.85510962,134.86,134.82,0.68411848]
[1767631738380,13.52,134.85,134.82,0.68411848]
[1767631740281,20.9358222,134.85,134.82,0.68411848]
[1767631740678,9.85498297,134.86,134.82,0.68411848]
[1767631740983,13.52,134.85,134.82,0.68411848]
[1767631742051,20.93576892,134.85,134.82,0.68411848]
[1767631744495,103.2,134.89,134.83,0.65697181]
[1767631744783,15.9596245,134.89,134.83,0.65697181]
[1767631745172,13.52,134.89,134.83,0.65697181]
[1767631745685,2.4396245,134.88,134.83,0.65697181]
[1767631746187,15.9596245,134.89,134.83,0.65697181]
[1767631746388,23.37343407,134.89,134.84,0.65697181]
[1767631747086,2.4396245,134.88,134.84,0.65697181]
[1767631747784,2.4396245,134.88,134.82,7.4170674]
[1767631747785,2.4396245,134.87,134.83,0.65697181]
[1767631747998,39.46742955,134.89,134.83,0.65697181]
[1767631748177,2.4396245,134.87,134.83,0.65697181]
[1767631749030,7.41463498,134.87,134.83,0.65697181]
[1767631749175,9.85425948,134.87,134.83,0.65697181]
[1767631749391,7.41463498,134.87,134.83,0.65697181]
[1767631749577,2.4396245,134.87,134.83,0.65697181]
[1767631749887,23.37330596,134.89,134.84,0.65697181]
[1767631750074,2.4396245,134.87,134.8,0.65697181]
[1767631750467,9.85464657,134.87,134.82,0.65697181]
[1767631750666,7.41502207,134.87,134.82,0.65697181]
[1767631750985,2.4396245,134.88,134.82,0.65697181]
[1767631751960,23.37322381,134.89,134.84,0.65697181]
[1767631752960,20.93359931,134.89,134.85,0.65697181]
[1767631753269,2.4396245,134.88,134.83,7.41650245]
[1767631753466,2.4396245,134.87,134.83,0.65697181]
[1767631754670,39.46724646,134.89,134.83,0.65697181]
[1767631754874,2.4396245,134.87,134.83,0.65697181]
[1767631755388,9.85417469,134.87,134.83,0.65697181]
[1767631756566,2.4396245,134.87,134.83,0.65697181]
[1767631756887,2.4396245,134.87,134.84,0.65697181]
[1767631757096,9.85385558,134.88,134.84,0.65697181]
[1767631758788,23.37317454,134.89,134.85,0.65697181]
[1767631759095,15.9596245,134.89,134.85,0.65697181]
[1767631759276,20.93345962,134.89,134.85,0.65697181]
[1767631759476,23.37308412,134.89,134.85,0.65697181]
[1767631760073,20.93345962,134.89,134.85,0.65697181]
[1767631760272,23.37308412,134.89,134.85,0.65697181]
[1767631760797,13.52,134.89,134.86,0.65697181]
[1767631761398,2.4396245,134.87,134.83,0.65697181]
[1767631761889,2.4396245,134.87,134.84,0.65697181]
[1767631762098,39.46733389,134.89,134.84,0.65697181]
[1767631762283,2.4396245,134.87,134.84,0.65697181]
[1767631762871,2.4396245,134.86,134.83,0.65697181]
[1767631764182,2.4396245,134.87,134.83,0.65697181]
[1767631765192,41.90695839,134.89,134.83,0.65697181]
[1767631765394,20.93371391,134.89,134.84,0.65697181]
[1767631766086,2.4396245,134.88,134.84,0.65697181]
[1767631766397,39.46733389,134.89,134.82,0.65697181]
[1767631766592,2.4396245,134.86,134.82,0.65697181]
[1767631768401,2.4396245,134.87,134.83,0.65697181]
[1767631768588,15.9596245,134.88,134.83,0.65697181]
[1767631768979,2.4396245,134.87,134.83,0.65697181]
[1767631769596,23.37333841,134.89,134.83,0.65697181]
[1767631769902,2.4396245,134.88,134.83,0.65697181]
[1767631770099,20.93371391,134.89,134.83,0.65697181]
[1767631770275,2.4396245,134.88,134.83,0.65697181]
[1767631770596,2.4396245,134.88,134.84,0.65697181]
[1767631770770,20.93371391,134.89,134.84,0.65697181]
[1767631770974,2.4396245,134.88,134.84,0.65697181]
[1767631771198,20.93371391,134.89,134.84,0.65697181]
[1767631771378,15.9596245,134.89,134.84,0.65697181]
[1767631771579,13.52,134.89,134.84,0.65697181]
[1767631771785,2.4396245,134.91,134.88,0.71386328]
[1767631772297,2.4396245,134.91,134.83,39.47838052]
[1767631772298,4.3e-07,134.89,134.86,0.71386328]
[1767631772500,2.4396245,134.88,134.86,0.71386328]
[1767631772692,9.85265749,134.9,134.86,0.71386328]
[1767631772897,2.4396245,134.89,134.86,0.71386328]
[1767631774591,32.04949896,134.92,134.84,0.71386328]
[1767631774592,9.85366123,134.88,134.84,0.71386328]
[1767631775103,7.41403673,134.88,134.84,0.71386328]
[1767631775273,2.4396245,134.88,134.84,0.71386328]
[1767631776805,2.4396245,134.91,134.85,0.71386328]
[1767631777106,15.9596245,134.92,134.85,0.71386328]
[1767631777284,13.52,134.92,134.85,0.71386328]
[1767631777484,2.4396245,134.91,134.85,0.71386328]
[1767631777991,2.4396245,134.91,134.86,7.41509713]
[1767631778300,2.4396245,134.91,134.87,0.71386328]
[1767631778884,23.37195079,134.92,134.87,0.71386328]
[1767631779981,2.4396245,134.91,134.87,0.71386328]
[1767631780875,2.4396245,134.91,134.88,0.71386328]
[1767631781081,13.52,134.92,134.88,0.71386328]
[1767631781082,103.2,134.95,134.88,0.71386328]
[1767631781281,2.4396245,134.94,134.88,0.71386328]
[1767631781593,7e-08,134.94,134.91,0.71386328]
[1767631781799,2.4396245,134.95,134.91,0.71386328]
[1767631782489,2.4396245,134.95,134.92,0.71386328]
[1767631783283,13.52,134.96,134.92,0.71386328]
[1767631783482,7.40795614,134.99,134.94,0.71386328]